fUSD/lending_fUSD_20250804
["ID","MTS","AMOUNT","RATE_DAILY","PERIOD"]
[377303207,1754326256390,-1266.61,0.00054794,120]
[377303208,1754326256399,-954.65,0.00054794,120]
[377303209,1754326256409,-400.0,0.00054794,120]
[377303210,1754326256423,-400.0,0.00054794,120]
[377303211,1754326256432,-400.0,0.00054794,120]
[377303212,1754326256442,-400.0,0.00054794,120]
[377303213,1754326256451,-400.0,0.00054794,120]
[377303214,1754326256463,-521.06,0.00054794,120]
[377303215,1754326256473,-400.0,0.00054794,120]
[377303216,1754326256482,-400.0,0.00054794,120]
[377303217,1754326256492,-2407.87,0.00054794,120]
[377303218,1754326256502,-5651.14,0.00054794,120]
[377303219,1754326256511,-400.0,0.00054794,120]
[377303220,1754326256521,-400.0,0.00054794,120]
[377303221,1754326256531,-2920.32,0.00054794,120]
[377303222,1754326256540,-572.96,0.00054794,120]
[377303223,1754326256550,-2322.56,0.00054794,120]
[377303224,1754326256560,-7376.09,0.00054794,120]
[377303225,1754326256569,-3449.67,0.00054794,120]
[377303226,1754326256580,-400.0,0.00054794,120]
[377303227,1754326256590,-400.0,0.00054794,120]
[377303228,1754326256599,-400.0,0.00054794,120]
[377303229,1754326256609,-2760.22,0.00054794,120]
[377303230,1754326256618,-400.0,0.00054794,120]
[377303231,1754326256628,-400.0,0.00054794,120]
[377303232,1754326256637,-400.0,0.00054794,120]
[377303233,1754326256647,-712.89,0.00054794,120]
[377303234,1754326256657,-1199.859741,0.00054794,120]
[377303235,1754326256667,-151.0,0.00054794,120]
[377303236,1754326256677,-151.0,0.00054794,120]
[377303237,1754326256687,-1199.859741,0.00054794,120]
[377303238,1754326256697,-618.45,0.00054794,120]
[377303239,1754326256707,-2632.68,0.00054794,120]
[377303240,1754326256717,-151.0,0.00054794,120]
[377303241,1754326256727,-1199.859741,0.00054794,120]
[377303242,1754326256738,-4135.53,0.00054794,120]
[377303243,1754326256748,-3505.95,0.00054794,120]
[377303244,1754326256757,-9761.52,0.00054794,120]
[377303245,1754326256767,-151.0,0.00054794,120]
[377303246,1754326256777,-716.05,0.00054794,120]
[377303247,1754326256787,-400.0,0.00054794,120]
[377303248,1754326256797,-151.0,0.00054794,120]
[377303249,1754326256807,-151.0,0.00054794,120]
[377303250,1754326256817,-594.7,0.00054794,120]
[377303251,1754326256827,-1265.86,0.00054794,120]
[377303252,1754326256837,-750.04,0.00054794,120]
[377303253,1754326256848,-1199.859741,0.00054794,120]
[377303254,1754326256858,-1199.859741,0.00054794,120]
[377303255,1754326256868,-2217.47,0.00054794,120]
[377303256,1754326256878,-1199.859741,0.00054794,120]
[377303257,1754326256887,-400.0,0.00054794,120]
[377303258,1754326256898,-654.78,0.00054794,120]
[377303259,1754326256908,-1910.99,0.00054794,120]
[377303260,1754326256917,-1025.83,0.00054794,120]
[377303261,1754326256927,-1518.57,0.00054794,120]
[377303262,1754326256937,-2945.33,0.00054794,120]
[377303263,1754326256947,-2514.21,0.00054794,120]
[377303264,1754326256957,-1185.7,0.00054794,120]
[377303265,1754326256967,-153.792595,0.00054794,120]
[377303266,1754326256976,-400.0,0.00054794,120]
[377303267,1754326256988,-698.7,0.00054794,120]
[377303268,1754326256997,-400.0,0.00054794,120]
[377303269,1754326257007,-400.0,0.00054794,120]
[377303270,1754326257017,-484.1940745,0.00054794,120]
[377303271,1754326257026,-400.0,0.00054794,120]
[377303272,1754326257036,-646.39,0.00054794,120]
[377303273,1754326257046,-2122.45,0.00054794,120]
[377303274,1754326257055,-400.0,0.00054794,120]
[377303275,1754326257065,-522.59,0.00054794,120]
[377303276,1754326257075,-400.0,0.00054794,120]
[377303277,1754326257085,-400.0,0.00054794,120]
[377303278,1754326257095,-3334.36,0.00054794,120]
[377303279,1754326257104,-2239.35,0.00054794,120]
[377303280,1754326257117,-400.0,0.00054794,120]
[377303281,1754326257126,-499.59,0.00054794,120]
[377303282,1754326257136,-2358.66,0.00054794,120]
[377303283,1754326257145,-400.0,0.00054794,120]
[377303284,1754326257155,-2910.69,0.00054794,120]
[377303285,1754326257164,-151.0,0.00054794,120]
[377303286,1754326257174,-1456.92,0.00054794,120]
[377303287,1754326257183,-151.0,0.00054794,120]
[377303288,1754326257193,-151.0,0.00054794,120]
[377303289,1754326257204,-400.0,0.00054794,120]
[377303290,1754326257213,-4608.79,0.00054794,120]
[377303291,1754326257224,-795.4,0.00054794,120]
[377303292,1754326257234,-400.0,0.00054794,120]
[377303293,1754326257246,-2188.2,0.00054794,120]
[377303294,1754326257255,-151.0,0.00054794,120]
[377303295,1754326257265,-400.0,0.00054794,120]
[377303296,1754326257276,-151.0,0.00054794,120]
[377303297,1754326257286,-223.6550868,0.00054794,120]
[377303298,1754326257295,-2703.55,0.00054794,120]
[377303299,1754326257304,-151.0,0.00054794,120]
[377303300,1754326257314,-1883.87,0.00054794,30]
[377303301,1754326257325,-151.0,0.00054794,120]
[377303302,1754326257335,-500.0,0.00054794,120]
[377303303,1754326257345,-400.0,0.00054794,120]
[377303304,1754326257356,-500.0,0.00054794,120]
[377303305,1754326257365,-400.0,0.00054794,120]
[377303306,1754326257375,-500.0,0.00054794,120]
[377303307,1754326257384,-500.0,0.00054794,120]
[377303308,1754326257394,-531.52333862,0.00054794,120]
[377303309,1754326257404,-500.0,0.00054794,120]
[377303310,1754326257414,-754.4,0.00054794,120]
[377303311,1754326257424,-988.19,0.00054794,120]
[377303312,1754326257435,-500.0,0.00054794,120]
[377303313,1754326257444,-500.0,0.00054794,120]
[377303314,1754326257454,-637.34,0.00054794,120]
[377303315,1754326257463,-500.0,0.00054794,120]
[377303316,1754326257473,-500.0,0.00054794,120]
[377303317,1754326257483,-500.0,0.00054794,120]
[377303318,1754326257493,-2032.53,0.00054794,120]
[377303319,1754326257503,-404.94744398,0.00054794,120]
[377303320,1754326257513,-500.0,0.00054794,120]
[377303321,1754326257523,-400.0,0.00054794,120]
[377303322,1754326257533,-500.0,0.00054794,120]
[377303323,1754326257544,-400.0,0.00054794,120]
[377303324,1754326257554,-500.0,0.00054794,120]
[377303325,1754326257563,-500.0,0.00054794,120]
[377303326,1754326257573,-1280.74,0.00054794,120]
[377303327,1754326257583,-500.0,0.00054794,120]
[377303328,1754326257593,-500.0,0.00054794,120]
[377303329,1754326257603,-171.87396125,0.00054794,120]
[377303330,1754326257612,-400.0,0.00054794,120]
[377303331,1754326257622,-400.0,0.00054794,120]
[377303332,1754326257632,-400.0,0.00054794,120]
[377303333,1754326257644,-400.0,0.00054794,120]
[377303334,1754326257654,-2563.56,0.00054794,120]
[377303335,1754326257664,-2165.53,0.00054794,120]
[377303336,1754326257674,-151.0,0.00054794,120]
[377303337,1754326257683,-2623.92,0.00054794,120]
[377303338,1754326257694,-1186.27,0.00054794,120]
[377303339,1754326257704,-151.0,0.00054794,120]
[377303340,1754326257714,-151.0,0.00054794,120]
[377303341,1754326257723,-2538.99,0.00054794,120]
[377303342,1754326257733,-400.0,0.00054794,120]
[377303343,1754326257744,-400.0,0.00054794,120]
[377303344,1754326257754,-400.0,0.00054794,120]
[377303345,1754326257763,-431.41,0.00054794,120]
[377303346,1754326257772,-12102.8,0.00054794,120]
[377303347,1754326257782,-400.0,0.00054794,120]
[377303348,1754326257792,-611.32,0.00054794,120]
[377303349,1754326257803,-400.0,0.00054794,120]
[377303350,1754326257815,-400.0,0.00054794,120]
[377303351,1754326257827,-5059.49,0.00054794,120]
[377303352,1754326257837,-2542.25,0.00054794,120]
[377303353,1754326257850,-1540.0,0.00054794,120]
[377303354,1754326257860,-400.0,0.00054794,120]
[377303355,1754326257870,-400.0,0.00054794,120]
[377303356,1754326257880,-400.0,0.00054794,120]
[377303357,1754326257890,-400.0,0.00054794,120]
[377303358,1754326257899,-4136.54,0.00054794,120]
[377303359,1754326257911,-3521.68,0.00054794,120]
[377303360,1754326257922,-500.0,0.00054794,120]
[377303361,1754326257933,-5565.01,0.00054794,120]
[377303362,1754326257944,-500.0,0.00054794,120]
[377303363,1754326257954,-400.0,0.00054794,120]
[377303364,1754326257964,-400.0,0.00054794,120]
[377303365,1754326257973,-500.0,0.00054794,120]
[377303366,1754326257983,-2621.95,0.00054794,120]
[377303367,1754326257994,-669.65,0.00054794,120]
[377303368,1754326258004,-557.94,0.00054794,120]
[377303369,1754326258013,-543.99690715,0.00054794,120]
[377303370,1754326258022,-816.23,0.00054794,120]
[377303371,1754326258032,-1548.82,0.00054794,120]
[377303372,1754326258042,-3603.89,0.00054794,120]
[377303373,1754326258053,-400.0,0.00054794,120]
[377303374,1754326258063,-400.0,0.00054794,120]
[377303375,1754326258073,-3448.23,0.00054794,120]
[377303376,1754326258083,-400.0,0.00054794,120]
[377303377,1754326258092,-1060.88,0.00054794,120]
[377303378,1754326258102,-400.0,0.00054794,120]
[377303379,1754326258115,-992.46,0.00054794,120]
[377303380,1754326258125,-400.0,0.00054794,120]
[377303381,1754326258136,-400.0,0.00054794,120]
[377303382,1754326258146,-666.0,0.00054794,120]
[377303383,1754326258157,-1148.47,0.00054794,120]
[377303384,1754326258166,-2160.0,0.00054794,120]
[377303385,1754326258177,-400.0,0.00054794,120]
[377303386,1754326258188,-1585.85,0.00054794,120]
[377303387,1754326258199,-500.0,0.00054794,120]
[377303388,1754326258208,-2678.39,0.00054794,120]
[377303389,1754326258218,-400.0,0.00054794,120]
[377303390,1754326258228,-400.0,0.00054794,120]
[377303391,1754326258239,-400.0,0.00054794,120]
[377303392,1754326258248,-400.0,0.00054794,120]
[377303393,1754326258258,-692.34,0.00054794,120]
[377303394,1754326258267,-3077.49,0.00054794,120]
[377303395,1754326258277,-400.0,0.00054794,120]
[377303396,1754326258287,-400.0,0.00054794,120]
[377303397,1754326258296,-7399.02,0.00054794,120]
[377303398,1754326258306,-400.0,0.00054794,120]
[377303399,1754326258316,-400.0,0.00054794,120]
[377303400,1754326258326,-400.0,0.00054794,120]
[377303401,1754326258341,-400.0,0.00054794,120]
[377303402,1754326258350,-1266.36,0.00054794,120]
[377303403,1754326258360,-1104.45,0.00054794,120]
[377303404,1754326258370,-4772.66,0.00054794,120]
[377303405,1754326258380,-601.99,0.00054794,120]
[377303406,1754326258389,-400.0,0.00054794,120]
[377303407,1754326258399,-400.0,0.00054794,120]
[377303408,1754326258409,-400.0,0.00054794,120]
[377303409,1754326258419,-1701.89,0.00054794,120]
[377303410,1754326258429,-400.0,0.00054794,120]
[377303411,1754326258438,-151.0,0.00054794,120]
[377303412,1754326258448,-1380.64,0.00054794,120]
[377303413,1754326258458,-151.0,0.00054794,120]
[377303414,1754326258467,-1288.53,0.00054794,120]
[377303415,1754326258477,-1193.32,0.00054794,120]
[377303416,1754326258487,-1542.96,0.00054794,120]
[377303417,1754326258497,-151.0,0.00054794,120]
[377303418,1754326258506,-3273.98,0.00054794,120]
[377303419,1754326258516,-400.0,0.00054794,120]
[377303420,1754326258525,-4322.63,0.00054794,120]
[377303421,1754326258535,-400.0,0.00054794,120]
[377303422,1754326258545,-15513.05,0.00054794,120]
[377303423,1754326258555,-1113.76,0.00054794,120]
[377303424,1754326258565,-400.0,0.00054794,120]
[377303425,1754326258574,-400.0,0.00054794,120]
[377303426,1754326258584,-400.0,0.00054794,120]
[377303427,1754326258594,-620.86,0.00054794,120]
[377303428,1754326258603,-400.0,0.00054794,120]
[377303429,1754326258612,-151.0,0.00054794,120]
[377303430,1754326258622,-400.0,0.00054794,120]
[377303431,1754326258631,-151.0,0.00054794,120]
[377303432,1754326258640,-400.0,0.00054794,120]
[377303433,1754326258650,-151.0,0.00054794,120]
[377303434,1754326258659,-471.5,0.00054794,120]
[377303435,1754326258669,-400.0,0.00054794,120]
[377303436,1754326258678,-655.63,0.00054794,120]
[377303437,1754326258688,-72.61924643,0.00054794,120]
[377303438,1754326259791,-327.38075357,0.00054794,120]
[377303439,1754326259802,-658.35,0.00054794,120]
[377303440,1754326259811,-151.0,0.00054794,120]
[377303441,1754326259821,-210.812676,0.00054794,120]
[377303442,1754326259831,-763.74,0.00054794,120]
[377303443,1754326259841,-400.0,0.00054794,120]
[377303444,1754326259851,-400.4496629,0.00054794,120]
[377303445,1754326259861,-400.0,0.00054794,120]
[377303446,1754326259871,-400.0,0.00054794,120]
[377303447,1754326259881,-270.56933331,0.00054794,120]
[377303448,1754326259893,-129.43066669,0.00054794,120]
[377303449,1754326259903,-5080.57,0.00054794,120]
[377303450,1754326259914,-64.64314155,0.00054794,120]
[377303451,1754326259930,-591.9816,0.00054794,120]
[377303452,1754326259942,-364.65525845,0.00054794,120]
[377303453,1754326259952,-769.40834155,0.00054794,120]
[377303454,1754326259977,-658.47843359,0.00054794,120]
[377303455,1754326259989,-810.1335987,0.00054794,120]
[377303456,1754326260006,-1401.35962616,0.00054794,120]
[377303457,1754326260017,-149.37275911,0.00054794,120]
[377303458,1754326260030,-250.62724089,0.00054794,120]
[377303459,1754326260041,-16.70209406,0.00054794,120]
[377303460,1754326260054,-1381.35790594,0.00054794,120]
[377303461,1754326260428,-400.0,0.00054794,120]
[377303462,1754326260440,-1210.41,0.00054794,120]
[377303463,1754326260450,-400.0,0.00054794,120]
[377303464,1754326260460,-2528.94,0.00054794,120]
[377303465,1754326260470,-694.2,0.00054794,120]
[377303466,1754326260481,-867.39,0.00054794,120]
[377303467,1754326260492,-2626.83,0.00054794,120]
[377303468,1754326260502,-5076.18,0.00054794,120]
[377303469,1754326260512,-430.96401808,0.00054794,120]
[377303470,1754326260521,-1334.98,0.00054794,120]
[377303471,1754326260532,-400.0,0.00054794,120]
[377303472,1754326260542,-1196.08830644,0.00054794,120]
[377303473,1754326260559,-138.89169356,0.00054794,120]
[377303474,1754326260569,-400.0,0.00054794,120]
[377303475,1754326260580,-1334.98,0.00054794,120]
[377303476,1754326260591,-1334.98,0.00054794,120]
[377303477,1754326260600,-400.0,0.00054794,120]
[377303478,1754326260610,-946.38614556,0.00054794,120]
[377303479,1754326260633,-388.59385444,0.00054794,120]
[377303480,1754326260643,-400.0,0.00054794,120]
[377303481,1754326260653,-289.53900669,0.00054794,120]
[377303482,1754326260665,-1045.44099331,0.00054794,120]
[377303483,1754326260675,-574.6702954,0.00054794,120]
[377303484,1754326260687,-1006.6597046,0.00054794,120]
[377303485,1754326260698,-1334.98,0.00054794,120]
[377303486,1754326260707,-400.0,0.00054794,120]
[377303487,1754326260718,-1334.98,0.00054794,120]
[377303488,1754326260727,-400.0,0.00054794,120]
[377303489,1754326260737,-316.74313519,0.00054794,120]
[377303490,1754326260751,-1018.23686481,0.00054794,120]
[377303491,1754326260761,-1334.98,0.00054794,120]
[377303492,1754326260770,-1334.98,0.00054794,120]
[377303493,1754326260781,-1334.98,0.00054794,120]
[377303494,1754326260791,-1334.98,0.00054794,120]
[377303495,1754326260800,-1334.98,0.00054794,120]
[377303496,1754326260810,-1334.98,0.00054794,120]
[377303497,1754326260820,-1334.98,0.00054794,120]
[377303498,1754326260830,-794.76,0.00054794,120]
[377303499,1754326260839,-1163.41,0.00054794,120]
[377303500,1754326260850,-3012.03,0.00054794,120]
[377303501,1754326260860,-1334.98,0.00054794,120]
[377303502,1754326260870,-648.66,0.00054794,120]
[377303503,1754326260881,-1334.98,0.00054794,120]
[377303504,1754326260902,-454.59,0.00054794,120]
[377303505,1754326260913,-140.0568649,0.00054794,120]
[377303506,1754326261768,-1194.9231351,0.00054794,120]
[377303507,1754326261778,-1334.98,0.00054794,120]
[377303508,1754326261788,-1334.98,0.00054794,120]
[377303509,1754326261798,-1334.98,0.00054794,120]
[377303510,1754326261809,-1334.98,0.00054794,120]
[377303511,1754326261820,-11445.07,0.00054794,120]
[377303512,1754326261830,-1335.15523173,0.00054794,120]
[377303513,1754326261841,-400.0,0.00054794,120]
[377303514,1754326261851,-400.0,0.00054794,120]
[377303515,1754326261861,-1106.14,0.00054794,120]
[377303516,1754326261870,-1377.88,0.00054794,120]
[377303517,1754326261880,-1562.44,0.00054794,120]
[377303518,1754326261891,-400.0,0.00054794,120]
[377303519,1754326261901,-1476.12,0.00054794,120]
[377303520,1754326261911,-1333.83,0.00054794,120]
[377303521,1754326261922,-400.0,0.00054794,120]
[377303522,1754326261931,-2908.47,0.00054794,120]
[377303523,1754326261941,-2532.23,0.00054794,120]
[377303524,1754326261951,-448.6,0.00054794,120]
[377303525,1754326261961,-3661.74,0.00054794,120]
[377303526,1754326261970,-400.0,0.00054794,120]
[377303527,1754326261980,-6494.36,0.00054794,120]
[377303528,1754326261990,-1240.9,0.00054794,120]
[377303529,1754326262002,-731.9,0.00054794,120]
[377303530,1754326262012,-1418.48,0.00054794,120]
[377303531,1754326262022,-400.0,0.00054794,120]
[377303532,1754326262031,-747.8,0.00054794,120]
[377303533,1754326262042,-400.0,0.00054794,120]
[377303534,1754326262052,-154.194222,0.00054794,120]
[377303535,1754326262062,-1372.98,0.00054794,120]
[377303536,1754326262073,-400.0,0.00054794,120]
[377303537,1754326262082,-154.194222,0.00054794,120]
[377303538,1754326262092,-726.58,0.00054794,120]
[377303539,1754326262103,-154.194222,0.00054794,120]
[377303540,1754326262115,-2804.13,0.00054794,120]
[377303541,1754326262126,-2155.78,0.00054794,120]
[377303542,1754326262136,-6373.35,0.00054794,120]
[377303543,1754326262146,-400.0,0.00054794,120]
[377303544,1754326262155,-2199.41,0.00054794,120]
[377303545,1754326262166,-400.0,0.00054794,7]
[377303546,1754326262176,-154.194222,0.00054794,120]
[377303547,1754326262187,-154.194222,0.00054794,120]
[377303548,1754326262197,-2832.07,0.00054794,120]
[377303549,1754326262208,-154.194222,0.00054794,120]
[377303550,1754326262219,-2589.47,0.00054794,120]
[377303551,1754326262231,-1773.85,0.00054794,120]
[377303552,1754326262243,-400.0,0.00054794,120]
[377303553,1754326262254,-400.0,0.00054794,120]
[377303554,1754326262264,-853.05,0.00054794,120]
[377303555,1754326262273,-151.0,0.00054794,120]
[377303556,1754326262283,-1114.36,0.00054794,120]
[377303557,1754326262293,-400.0,0.00054794,120]
[377303558,1754326262303,-151.0,0.00054794,120]
[377303559,1754326262312,-151.0,0.00054794,120]
[377303560,1754326262322,-400.0,0.00054794,120]
[377303561,1754326262332,-500.0,0.00054794,120]
[377303562,1754326262342,-500.0,0.00054794,120]
[377303563,1754326262352,-500.0,0.00054794,120]
[377303564,1754326262362,-500.0,0.00054794,120]
[377303565,1754326262372,-500.0,0.00054794,120]
[377303566,1754326262382,-511.43198058,0.00054794,120]
[377303567,1754326262392,-967.38,0.00054794,120]
[377303568,1754326262402,-1032.51,0.00054794,120]
[377303569,1754326262412,-1412.32,0.00054794,120]
[377303570,1754326262422,-400.0,0.00054794,120]
[377303571,1754326262432,-6141.47,0.00054794,120]
[377303572,1754326262442,-151.0,0.00054794,120]
[377303573,1754326262452,-2208.9,0.00054794,120]
[377303574,1754326262461,-152.424568,0.00054794,120]
[377303575,1754326262471,-1461.92,0.00054794,120]
[377303576,1754326262481,-400.0,0.00054794,120]
[377303577,1754326262491,-151.0,0.00054794,120]
[377303578,1754326262502,-400.0,0.00054794,120]
[377303579,1754326262512,-720.13,0.00054794,120]
[377303580,1754326262522,-1605.66,0.00054794,120]
[377303581,1754326262533,-570.95,0.00054794,120]
[377303582,1754326262543,-151.0,0.00054794,120]
[377303583,1754326262553,-407.84,0.00054794,120]
[377303584,1754326262563,-151.0,0.00054794,120]
[377303585,1754326262573,-151.0,0.00054794,120]
[377303586,1754326262583,-151.0,0.00054794,120]
[377303587,1754326262593,-400.0,0.00054794,120]
[377303588,1754326262603,-400.0,0.00054794,120]
[377303589,1754326262613,-151.0,0.00054794,120]
[377303590,1754326262624,-151.0,0.00054794,120]
[377303591,1754326262634,-267.82669407,0.00054794,120]
[377303592,1754326262643,-400.0,0.00054794,120]
[377303593,1754326262653,-400.0,0.00054794,120]
[377303594,1754326262663,-500.0,0.00054794,10]
[377303595,1754326262673,-1375.99,0.00054794,120]
[377303596,1754326262683,-1551.31,0.00054794,120]
[377303597,1754326262693,-5453.38,0.00054794,120]
[377303598,1754326262702,-400.0,0.00054794,120]
[377303599,1754326262712,-2849.59,0.00054794,120]
[377303600,1754326262722,-400.0,0.00054794,120]
[377303601,1754326262732,-2158.79,0.00054794,120]
[377303602,1754326262742,-151.0,0.00054794,120]
[377303603,1754326262755,-1171.3,0.00054794,120]
[377303604,1754326262765,-151.0,0.00054794,120]
[377303605,1754326262775,-400.0,0.00054794,120]
[377303606,1754326262785,-986.47,0.00054794,120]
[377303607,1754326262795,-171.803334,0.00054794,120]
[377303608,1754326262805,-400.0,0.00054794,120]
[377303609,1754326262815,-862.81,0.00054794,120]
[377303610,1754326262825,-2734.98,0.00054794,120]
[377303611,1754326262835,-2758.31,0.00054794,120]
[377303612,1754326262844,-4244.08,0.00054794,120]
[377303613,1754326262854,-4818.06,0.00054794,120]
[377303614,1754326262864,-3030.72,0.00054794,120]
[377303615,1754326262874,-2271.09,0.00054794,120]
[377303616,1754326262883,-517.96,0.00054794,120]
[377303617,1754326262894,-2905.37,0.00054794,120]
[377303618,1754326262904,-151.0,0.00054794,120]
[377303619,1754326262914,-151.0,0.00054794,120]
[377303620,1754326262923,-400.0,0.00054794,120]
[377303621,1754326262933,-400.0,0.00054794,120]
[377303622,1754326262942,-161.337801,0.00054794,120]
[377303623,1754326262952,-151.0,0.00054794,120]
[377303624,1754326262962,-156.752019,0.00054794,120]
[377303625,1754326262972,-2168.01,0.00054794,120]
[377303626,1754326262982,-400.0,0.00054794,120]
[377303627,1754326262992,-856.65,0.00054794,120]
[377303628,1754326263004,-3607.51,0.00054794,120]
[377303629,1754326263014,-348.11297526,0.00054794,120]
[377303630,1754326263023,-1503.35,0.00054794,120]
[377303631,1754326263034,-1353.42,0.00054794,120]
[377303632,1754326263044,-2069.14,0.00054794,120]
[377303633,1754326263054,-1143.72,0.00054794,120]
[377303634,1754326263063,-2560.31,0.00054794,120]
[377303635,1754326263073,-400.0,0.00054794,120]
[377303636,1754326263083,-5111.81,0.00054794,120]
[377303637,1754326263093,-400.0,0.00054794,120]
[377303638,1754326263103,-2608.07,0.00054794,120]
[377303639,1754326263117,-718.0,0.00054794,120]
[377303640,1754326263128,-400.0,0.00054794,120]
[377303641,1754326263138,-1044.03,0.00054794,120]
[377303642,1754326263148,-607.05,0.00054794,120]
[377303643,1754326263158,-2450.9,0.00054794,120]
[377303644,1754326263169,-1192.26,0.00054794,120]
[377303645,1754326263179,-1075.69,0.00054794,120]
[377303646,1754326263190,-400.0,0.00054794,120]
[377303647,1754326263200,-481.26,0.00054794,120]
[377303648,1754326263210,-1169.24,0.00054794,120]
[377303649,1754326263220,-400.0,0.00054794,120]
[377303650,1754326263230,-749.71,0.00054794,120]
[377303651,1754326263240,-400.0,0.00054794,120]
[377303652,1754326263250,-4609.98,0.00054794,120]
[377303653,1754326263261,-1053.4,0.00054794,120]
[377303654,1754326263271,-1107.45,0.00054794,120]
[377303655,1754326263281,-600.74,0.00054794,120]
[377303656,1754326263291,-400.0,0.00054794,120]
[377303657,1754326263301,-2060.6,0.00054794,120]
[377303658,1754326263311,-448.15,0.00054794,120]
[377303659,1754326263321,-4650.56,0.00054794,120]
[377303660,1754326263332,-2828.23,0.00054794,120]
[377303661,1754326263342,-5067.67,0.00054794,120]
[377303662,1754326263352,-6787.65,0.00054794,120]
[377303663,1754326263363,-400.0,0.00054794,120]
[377303664,1754326263373,-3123.75,0.00054794,120]
[377303665,1754326263383,-1132.6,0.00054794,120]
[377303666,1754326263394,-794.98,0.00054794,120]
[377303667,1754326263406,-2017.31,0.00054794,120]
[377303668,1754326263416,-401.18411574,0.00054794,120]
[377303669,1754326263428,-1221.05,0.00054794,120]
[377303670,1754326263439,-400.0,0.00054794,120]
[377303671,1754326263450,-400.0,0.00054794,120]
[377303672,1754326263461,-402.36870275,0.00054794,120]
[377303673,1754326263471,-1020.3,0.00054794,120]
[377303674,1754326263481,-674.19,0.00054794,120]
[377303675,1754326263492,-967.93,0.00054794,120]
[377303676,1754326263503,-878.99,0.00054794,120]
[377303677,1754326263514,-886.3,0.00054794,120]
[377303678,1754326263524,-507.65,0.00054794,120]
[377303679,1754326263534,-400.0,0.00054794,120]
[377303680,1754326263544,-155.09332544,0.00054794,120]
[377303681,1754326263577,-673.4473475,0.00054794,120]
[377303682,1754326263589,-2606.47932706,0.00054794,120]
[377303683,1754326263599,-244.96235429,0.00054794,120]
[377303684,1754326263623,-155.03764571,0.00054794,120]
[377303685,1754326263632,-400.0,0.00054794,120]
[377303686,1754326263642,-808.49960591,0.00054794,120]
[377303687,1754326263741,-1180.047384,0.00054794,120]
[377303688,1754326263755,-1588.92418119,0.00054794,120]
[377303689,1754326263938,-442.1388289,0.00054794,120]
[377303690,1754326263948,-154.97992213,0.00054794,120]
[377303691,1754326263964,-1638.43113141,0.00054794,120]
[377303692,1754326263975,-393.20894646,0.00054794,120]
[377303693,1754326263985,-193.79105354,0.00054794,120]
[377303694,1754326264007,-206.20894646,0.00054794,120]
[377303695,1754326264017,-400.0,0.00054794,120]
[377303696,1754326264027,-5551.57,0.00054794,120]
[377303697,1754326264038,-3291.52,0.00054794,120]
[377303698,1754326264047,-2717.65,0.00054794,120]
[377303699,1754326264058,-400.0,0.00054794,120]
[377303700,1754326264068,-400.0,0.00054794,120]
[377303701,1754326264079,-3599.92,0.00054794,120]
[377303702,1754326264089,-400.0,0.00054794,120]
[377303703,1754326264099,-400.0,0.00054794,120]
[377303704,1754326264111,-681.06,0.00054794,30]
[377303705,1754326264126,-2136.7,0.00054794,120]
[377303706,1754326264136,-644.33,0.00054794,120]